fUSD/lending_fUSD_20260112
["ID","MTS","AMOUNT","RATE_DAILY","PERIOD"]
[401484181,1768260638127,-150.0,0.00016823,2]
[401484183,1768260638137,-150.0,0.00016824,2]
[401484185,1768260638146,-150.0,0.00016826,2]
[401484187,1768260638155,-150.0,0.00016826,2]
[401484189,1768260638164,-150.0,0.00016833,2]
[401484191,1768260638173,-150.0,0.00016843,2]
[401484193,1768260638182,-150.0,0.00016848,2]
[401484195,1768260638191,-150.0,0.00016849,2]
[401484197,1768260638200,-150.0,0.00016852,2]
[401484199,1768260638209,-150.0,0.00016858,2]
[401484201,1768260638218,-150.0,0.00016858,2]
[401484202,1768260638227,-150.0,0.00016867,2]
[401484203,1768260638236,-150.0,0.00016869,2]
[401484204,1768260638244,-231.91178999,0.00016869,2]
[401484205,1768260638253,-150.0,0.00016872,2]
[401484206,1768260638262,-150.0,0.00016878,2]
[401484207,1768260638271,-150.0,0.00016879,2]
[401484208,1768260638280,-330.83,0.00016884,2]
[401484209,1768260638289,-150.0,0.00016892,2]
[401484210,1768260638298,-150.0,0.00016892,2]
[401484211,1768260638307,-150.0,0.00016894,2]
[401484212,1768260638316,-150.0,0.00016896,2]
[401484213,1768260638325,-150.0,0.000169,2]
[401484214,1768260638335,-150.0,0.000169,2]
[401484216,1768260638344,-150.0,0.00016904,2]
[401484218,1768260638353,-150.0,0.00016904,2]
[401484220,1768260638363,-150.0,0.00016908,2]
[401484222,1768260638372,-1101.0,0.00016911,2]
[401484224,1768260638381,-150.0,0.0001692,2]
[401484226,1768260638391,-150.0,0.0001692,2]
[401484228,1768260638401,-150.0,0.0001692,2]
[401484230,1768260638410,-150.0,0.00016927,2]
[401484232,1768260638419,-150.0,0.00016927,2]
[401484234,1768260638428,-150.0,0.0001693,2]
[401484236,1768260638437,-150.0,0.00016933,2]
[401484238,1768260638446,-150.0,0.00016938,2]
[401484240,1768260638455,-150.0,0.00016944,2]
[401484242,1768260638465,-500.0,0.00016944,2]
[401484244,1768260638474,-23309.28328766,0.00016944,2]
[401484246,1768260638483,-150.0,0.00016946,2]
[401484248,1768260638493,-150.0,0.00016957,2]
[401484250,1768260638503,-150.0,0.00016962,2]
[401484252,1768260638512,-150.0,0.00016962,2]
[401484254,1768260638521,-150.0,0.00016967,2]
[401484256,1768260638531,-150.0,0.00016967,2]
[401484258,1768260638541,-150.0,0.00016968,2]
[401484260,1768260638550,-150.0,0.00016971,2]
[401484262,1768260638560,-150.0,0.00016983,2]
[401484264,1768260638569,-150.0,0.00016983,2]
[401484266,1768260638578,-150.0,0.00016992,2]
[401484268,1768260638587,-150.0,0.00016996,2]
[401484270,1768260638597,-150.0,0.00016996,2]
[401484272,1768260638606,-150.0,0.00016997,2]
[401484274,1768260638617,-150.0,0.00016997,2]
[401484276,1768260638626,-150.0,0.00017,2]
[401484278,1768260638636,-150.0,0.00017,2]
[401484281,1768260638645,-150.0,0.00017,2]
[401484283,1768260638654,-150.0,0.00017,2]
[401484284,1768260638663,-776.50436,0.00017,2]
[401484286,1768260638673,-250.0,0.00017,2]
[401484288,1768260638686,-3557.07289406,0.00017,2]
[401484290,1768260638695,-160.0,0.00017,2]
[401484292,1768260638705,-225.13457576,0.00017,2]
[401484295,1768260638715,-150.0,0.00017009,2]
[401484297,1768260638725,-150.0,0.00017016,2]
[401484299,1768260638734,-3292.0,0.00017022,2]
[401484301,1768260638743,-150.0,0.00017023,2]
[401484303,1768260638753,-500.0,0.00017025,2]
[401484305,1768260638762,-500.0,0.00017025,2]
[401484307,1768260638771,-500.0,0.00017025,2]
[401484309,1768260638780,-391.13971577,0.00017025,2]
[401484311,1768260638789,-150.0,0.00017026,2]
[401484313,1768260638798,-150.0,0.00017031,2]
[401484315,1768260638807,-150.0,0.00017031,2]
[401484317,1768260638817,-150.0,0.00017033,2]
[401484319,1768260638827,-150.0,0.00017035,2]
[401484321,1768260638838,-150.0,0.0001704,2]
[401484323,1768260638847,-162.0,0.0001704,2]
[401484325,1768260638856,-834.0,0.0001704,2]
[401484327,1768260638866,-834.0,0.0001704,2]
[401484329,1768260638875,-150.0,0.00017049,2]
[401484331,1768260638885,-150.0,0.00017056,2]
[401484333,1768260638895,-150.0,0.00017061,2]
[401484335,1768260638904,-150.0,0.00017061,2]
[401484337,1768260638914,-150.0,0.00017064,2]
[401484339,1768260638923,-150.0,0.00017065,2]
[401484341,1768260638933,-150.0,0.00017065,2]
[401484343,1768260638943,-150.0,0.00017067,2]
[401484345,1768260638952,-161.98929508,0.00017073,2]
[401484347,1768260638963,-500.0,0.00017073,2]
[401484349,1768260638972,-500.0,0.00017073,2]
[401484351,1768260638981,-500.0,0.00017073,2]
[401484353,1768260638991,-500.0,0.00017073,2]
[401484355,1768260639000,-500.0,0.00017073,2]
[401484357,1768260639009,-500.0,0.00017073,2]
[401484359,1768260639018,-500.0,0.00017073,2]
[401484361,1768260639027,-169.86648744,0.00017073,2]
[401484363,1768260639036,-173.30819609,0.00017073,2]
[401484365,1768260639045,-175.33645003,0.00017073,2]
[401484367,1768260639054,-167.63634062,0.00017073,2]
[401484369,1768260639063,-500.0,0.00017073,2]
[401484371,1768260639072,-500.0,0.00017073,2]
[401484373,1768260639081,-500.0,0.00017073,2]
[401484375,1768260639091,-500.0,0.00017073,2]
[401484377,1768260639100,-500.0,0.00017073,2]
[401484379,1768260639110,-164.2110081,0.00017073,2]
[401484381,1768260639119,-500.0,0.00017073,2]
[401484383,1768260639128,-537.39654828,0.00017073,2]
[401484385,1768260639138,-500.0,0.00017073,2]
[401484387,1768260639147,-500.0,0.00017073,2]
[401484389,1768260639156,-500.0,0.00017073,2]
[401484391,1768260639165,-500.11872932,0.00017073,2]
[401484393,1768260639175,-500.0,0.00017073,2]
[401484395,1768260639184,-500.0,0.00017073,2]
[401484397,1768260639194,-500.0,0.00017073,2]
[401484399,1768260639203,-500.0,0.00017073,2]
[401484401,1768260639213,-162.59101262,0.00017073,2]
[401484403,1768260639223,-500.0,0.00017073,2]
[401484405,1768260639232,-500.0,0.00017073,2]
[401484407,1768260639242,-316.52683716,0.00017073,2]
[401484409,1768260639252,-500.0,0.00017073,2]
[401484411,1768260639261,-500.0,0.00017073,2]
[401484413,1768260639270,-501.85422751,0.00017073,2]
[401484415,1768260639281,-224.8179227,0.00017073,2]
[401484417,1768260639290,-500.0,0.00017073,2]
[401484419,1768260639299,-500.0,0.00017073,2]
[401484421,1768260639309,-500.0,0.00017073,2]
[401484423,1768260639318,-500.0,0.00017073,2]
[401484425,1768260639326,-500.0,0.00017073,2]
[401484427,1768260639335,-500.0,0.00017073,2]
[401484429,1768260639344,-500.0,0.00017073,2]
[401484431,1768260639354,-500.0,0.00017073,2]
[401484433,1768260639363,-500.0,0.00017073,2]
[401484435,1768260639372,-500.0,0.00017073,2]
[401484437,1768260639381,-500.0,0.00017073,2]
[401484439,1768260639391,-500.0,0.00017073,2]
[401484441,1768260639400,-500.0,0.00017073,2]
[401484443,1768260639409,-163.4155148,0.00017073,2]
[401484445,1768260639419,-169.17232811,0.00017073,2]
[401484447,1768260639429,-150.0,0.00017074,2]
[401484449,1768260639438,-469.78735424,0.0001708,2]
[401484451,1768260639448,-150.0,0.00017085,2]
[401484453,1768260639457,-150.0,0.00017087,2]
[401484455,1768260639467,-150.0,0.00017088,2]
[401484457,1768260639476,-283.74533768,0.00017099,2]
[401484459,1768260639486,-176.43590763,0.00017099,2]
[401484461,1768260639495,-1181.17539716,0.00017099,2]
[401484463,1768260639504,-2337.20378785,0.00017099,2]
[401484465,1768260639513,-500.0,0.00017099,2]
[401484467,1768260639523,-500.0,0.00017099,2]
[401484469,1768260639533,-500.0,0.00017099,2]
[401484471,1768260639542,-500.0,0.00017099,2]
[401484473,1768260639553,-500.0,0.00017099,2]
[401484475,1768260639562,-500.0,0.00017099,2]
[401484477,1768260639572,-500.0,0.00017099,2]
[401484479,1768260639582,-500.0,0.00017099,2]
[401484481,1768260639591,-162.7023203,0.00017099,2]
[401484483,1768260639600,-250.0,0.00017099,2]
[401484485,1768260639609,-500.0,0.00017099,2]
[401484512,1768260639855,-151.0,0.00017099,2]
[401484514,1768260639865,-151.0,0.00017099,2]
[401484516,1768260639874,-194.72792766,0.00017099,2]
[401484518,1768260639883,-250.0,0.00017099,2]
[401484520,1768260639892,-500.0,0.00017099,2]
[401484522,1768260639901,-533.88981491,0.00017099,2]
[401484524,1768260639912,-250.0,0.00017099,2]
[401484526,1768260639921,-500.0,0.00017099,2]
[401484528,1768260639930,-250.0,0.00017099,2]
[401484530,1768260639939,-500.0,0.00017099,2]
[401484532,1768260639948,-250.0,0.00017099,2]
[401484534,1768260639958,-500.0,0.00017099,2]
[401484536,1768260639967,-250.0,0.00017099,2]
[401484538,1768260639977,-500.0,0.00017099,2]
[401484540,1768260639986,-250.0,0.00017099,2]
[401484542,1768260639996,-500.0,0.00017099,2]
[401484544,1768260640005,-250.0,0.00017099,2]
[401484546,1768260640016,-250.0,0.00017099,2]
[401484548,1768260640025,-500.0,0.00017099,2]
[401484550,1768260640034,-250.0,0.00017099,2]
[401484552,1768260640043,-500.0,0.00017099,2]
[401484554,1768260640052,-250.0,0.00017099,2]
[401484556,1768260640061,-500.0,0.00017099,2]
[401484558,1768260640070,-288.06928003,0.00017099,2]
[401484560,1768260640079,-250.0,0.00017099,2]
[401484562,1768260640088,-250.0,0.00017099,2]
[401484564,1768260640097,-250.0,0.00017099,2]
[401484566,1768260640107,-250.0,0.00017099,2]
[401484568,1768260640116,-250.0,0.00017099,2]
[401484570,1768260640125,-250.0,0.00017099,2]
[401484572,1768260640134,-250.0,0.00017099,2]
[401484574,1768260640144,-250.0,0.00017099,2]
[401484576,1768260640153,-250.0,0.00017099,2]
[401484578,1768260640163,-250.0,0.00017099,2]
[401484580,1768260640172,-250.0,0.00017099,2]
[401484582,1768260640181,-250.0,0.00017099,2]
[401484584,1768260640190,-250.0,0.00017099,2]
[401484586,1768260640200,-250.0,0.00017099,2]
[401484588,1768260640210,-250.0,0.00017099,2]
[401484590,1768260640219,-250.0,0.00017099,2]
[401484592,1768260640228,-250.0,0.00017099,2]
[401484594,1768260640238,-250.0,0.00017099,2]
[401484596,1768260640247,-250.0,0.00017099,2]
[401484598,1768260640258,-250.0,0.00017099,2]
[401484600,1768260640267,-250.0,0.00017099,2]
[401484602,1768260640276,-250.0,0.00017099,2]
[401484605,1768260640286,-250.0,0.00017099,2]
[401484607,1768260640295,-250.0,0.00017099,2]
[401484609,1768260640304,-250.0,0.00017099,2]
[401484610,1768260640313,-250.0,0.00017099,2]
[401484612,1768260640323,-250.0,0.00017099,2]
[401484615,1768260640332,-250.0,0.00017099,2]
[401484617,1768260640342,-250.0,0.00017099,2]
[401484619,1768260640351,-250.0,0.00017099,2]
[401484621,1768260640361,-250.0,0.00017099,2]
[401484623,1768260640370,-250.0,0.00017099,2]
[401484625,1768260640379,-250.0,0.00017099,2]
[401484627,1768260640388,-250.0,0.00017099,2]
[401484629,1768260640398,-250.0,0.00017099,2]
[401484631,1768260640407,-250.0,0.00017099,2]
[401484633,1768260640416,-250.0,0.00017099,2]
[401484635,1768260640425,-250.0,0.00017099,2]
[401484637,1768260640434,-250.0,0.00017099,2]
[401484639,1768260640443,-250.0,0.00017099,2]
[401484641,1768260640453,-250.0,0.00017099,2]
[401484643,1768260640462,-250.0,0.00017099,2]
[401484645,1768260640471,-250.0,0.00017099,2]
[401484647,1768260640480,-250.0,0.00017099,2]
[401484649,1768260640490,-250.0,0.00017099,2]
[401484651,1768260640499,-250.0,0.00017099,2]
[401484653,1768260640508,-620.0,0.00017099,2]
[401484655,1768260640517,-250.0,0.00017099,2]
[401484657,1768260640526,-250.0,0.00017099,2]
[401484659,1768260640536,-250.0,0.00017099,2]
[401484660,1768260640546,-250.0,0.00017099,2]
[401484661,1768260640554,-998.0,0.00017099,2]
[401484662,1768260640564,-250.0,0.00017099,2]
[401484663,1768260640572,-250.0,0.00017099,2]
[401484664,1768260640581,-500.0,0.00017099,2]
[401484665,1768260640590,-500.0,0.00017099,2]
[401484666,1768260640599,-500.0,0.00017099,2]
[401484667,1768260640608,-500.0,0.00017099,2]
[401484668,1768260640617,-500.0,0.00017099,2]
[401484669,1768260640626,-500.0,0.00017099,2]
[401484671,1768260640635,-500.0,0.00017099,2]
[401484673,1768260640644,-500.0,0.00017099,2]
[401484675,1768260640653,-500.0,0.00017099,2]
[401484676,1768260640662,-250.0,0.00017099,2]
[401484679,1768260640672,-500.0,0.00017099,2]
[401484680,1768260640685,-250.0,0.00017099,2]
[401484683,1768260640694,-500.0,0.00017099,2]
[401484685,1768260640704,-250.0,0.00017099,2]
[401484687,1768260640713,-500.0,0.00017099,2]
[401484688,1768260640724,-1000.0,0.00017099,2]
[401484690,1768260640733,-322.6107,0.00017099,2]
[401484692,1768260640743,-250.0,0.00017099,2]
[401484695,1768260640753,-500.0,0.00017099,2]
[401484697,1768260640763,-1000.0,0.00017099,2]
[401484699,1768260640772,-250.0,0.00017099,2]
[401484701,1768260640781,-1000.0,0.00017099,2]
[401484703,1768260640791,-1000.0,0.00017099,2]
[401484705,1768260640800,-1000.0,0.00017099,2]
[401484707,1768260640810,-1000.0,0.00017099,2]
[401484709,1768260640819,-1000.0,0.00017099,2]
[401484710,1768260640827,-1000.0,0.00017099,2]
[401484713,1768260640837,-1000.0,0.00017099,2]
[401484715,1768260640849,-1000.0,0.00017099,2]
[401484717,1768260640858,-500.0,0.00017099,2]
[401484719,1768260640868,-250.0,0.00017099,2]
[401484721,1768260640878,-250.0,0.00017099,2]
[401484723,1768260640888,-250.0,0.00017099,2]
[401484725,1768260640897,-250.0,0.00017099,2]
[401484727,1768260640906,-250.0,0.00017099,2]
[401484729,1768260640916,-250.0,0.00017099,2]
[401484731,1768260640925,-250.0,0.00017099,2]
[401484733,1768260640935,-250.0,0.00017099,2]
[401484735,1768260640945,-150.0,0.000171,2]
[401484737,1768260640954,-150.0,0.000171,2]
[401484739,1768260640964,-150.0,0.000171,2]
[401484741,1768260640973,-150.0,0.000171,2]
[401484743,1768260640983,-150.0,0.000171,2]
[401484745,1768260640993,-150.0,0.000171,2]
[401484747,1768260641002,-273.0,0.00017102,2]
[401484749,1768260641012,-150.0,0.00017112,2]
[401484751,1768260641022,-150.0,0.00017113,2]
[401484753,1768260641031,-150.0,0.00017115,2]
[401484755,1768260641040,-273.0,0.00017117,2]
[401484757,1768260641050,-150.0,0.00017126,2]
[401484759,1768260641059,-150.0,0.00017133,2]
[401484761,1768260641069,-150.0,0.00017135,2]
[401484763,1768260641078,-150.0,0.00017135,2]
[401484765,1768260641087,-150.0,0.00017136,2]
[401484767,1768260641097,-150.0,0.00017139,2]
[401484769,1768260641106,-150.0,0.00017139,2]
[401484771,1768260641116,-150.0,0.00017144,2]
[401484773,1768260641126,-150.0,0.00017151,2]
[401484775,1768260641135,-273.0,0.00017155,2]
[401484777,1768260641145,-273.0,0.0001716,2]
[401484779,1768260641154,-150.0,0.0001716,2]
[401484781,1768260641164,-150.0,0.00017165,2]
[401484783,1768260641174,-150.0,0.00017167,2]
[401484785,1768260641183,-150.0,0.00017169,2]
[401484787,1768260641193,-150.0,0.00017169,2]
[401484789,1768260641203,-150.0,0.00017174,2]
[401484792,1768260641212,-200.0,0.00017174,2]
[401484794,1768260641222,-150.0,0.00017177,2]
[401484796,1768260641231,-759.61,0.00017178,2]
[401484798,1768260641241,-467.15,0.00017178,2]
[401484800,1768260641250,-179.28,0.00017178,2]
[401484802,1768260641259,-467.15,0.00017178,2]
[401484804,1768260641269,-179.28,0.00017178,2]
[401484806,1768260641279,-467.15,0.00017178,2]
[401484808,1768260641288,-179.28,0.00017178,2]
[401484810,1768260641297,-934.12,0.00017178,2]
[401484812,1768260641306,-179.28,0.00017178,2]
[401484814,1768260641315,-467.15,0.00017178,2]
[401484816,1768260641325,-179.28,0.00017178,2]
[401484818,1768260641335,-467.15,0.00017178,2]
[401484819,1768260641344,-467.15,0.00017178,2]
[401484822,1768260641354,-467.15,0.00017178,2]
[401484823,1768260641363,-467.15,0.00017178,2]
[401484825,1768260641372,-2045.48,0.00017178,2]
[401484828,1768260641382,-150.0,0.00017184,2]
[401484830,1768260641392,-3490.5,0.00017186,2]
[401484832,1768260641402,-150.0,0.00017191,2]
[401484834,1768260641412,-150.0,0.000172,2]
[401484836,1768260641422,-150.0,0.000172,2]
[401484838,1768260641431,-150.0,0.000172,2]
[401484840,1768260641440,-150.0,0.000172,2]
[401484842,1768260641450,-150.0,0.00017203,2]
[401484844,1768260641459,-624.52853463,0.00017203,2]
[401484846,1768260641469,-150.0,0.00017203,2]
[401484848,1768260641478,-150.0,0.00017204,2]
[401484850,1768260641487,-150.0,0.00017204,2]
[401484852,1768260641496,-150.0,0.00017208,2]
[401484854,1768260641506,-150.0,0.00017217,2]
[401484856,1768260641516,-150.0,0.00017217,2]
[401484858,1768260641525,-1000.0,0.00017222,2]
[401484860,1768260641534,-150.0,0.00017229,2]
[401484862,1768260641544,-150.0,0.00017232,2]
[401484864,1768260641554,-150.0,0.00017233,2]
[401484866,1768260641564,-150.0,0.00017233,2]
[401484868,1768260641573,-150.0,0.00017238,2]
[401484870,1768260641582,-150.0,0.00017238,2]
[401484872,1768260641592,-150.0,0.00017243,2]
[401484874,1768260641601,-150.0,0.00017254,2]
[401484876,1768260641610,-150.0,0.00017256,2]
[401484878,1768260641619,-3490.5,0.0001726,2]
[401484880,1768260641628,-150.0,0.00017262,2]
[401484882,1768260641637,-150.0,0.00017267,2]
[401484884,1768260641647,-150.0,0.0001727,2]
[401484886,1768260641656,-582.43660299,0.00017271,2]
[401484888,1768260641665,-150.0,0.00017273,2]
[401484890,1768260641677,-150.0,0.00017273,2]
[401484892,1768260641688,-150.0,0.0001728,2]
[401484894,1768260641697,-150.0,0.0001728,2]
[401484896,1768260641706,-150.0,0.0001728,2]
[401484898,1768260641716,-1267.0,0.00017282,2]
[401484900,1768260641726,-505.0,0.00017282,2]
[401484902,1768260641735,-1201.0,0.00017282,2]
[401484904,1768260641745,-914.0,0.00017282,2]
[401484905,1768260641754,-1330.0,0.00017282,2]
[401484907,1768260641764,-1405.0,0.00017282,2]
[401484909,1768260641773,-150.0,0.00017292,2]
[401484912,1768260641783,-150.0,0.00017296,2]
[401484914,1768260641794,-150.0,0.00017296,2]
[401484916,1768260641803,-150.0,0.000173,2]
[401484918,1768260641813,-150.0,0.000173,2]
[401484920,1768260641822,-150.0,0.00017304,2]
[401484922,1768260641831,-150.0,0.00017306,2]
[401484924,1768260641841,-150.0,0.00017308,2]
[401484926,1768260641850,-150.0,0.00017308,2]
[401484928,1768260641860,-150.0,0.00017321,2]
[401484930,1768260641869,-150.0,0.00017322,2]
[401484932,1768260641878,-150.0,0.00017328,2]
[401484934,1768260641888,-150.0,0.00017331,2]
[401484936,1768260641897,-273.0,0.00017332,2]
[401484938,1768260641907,-150.0,0.00017333,2]
[401484940,1768260641916,-3490.5,0.00017334,2]
[401484942,1768260641926,-150.0,0.00017342,2]
[401484944,1768260641935,-150.0,0.00017342,2]
[401484946,1768260641946,-150.0,0.00017348,2]
[401484948,1768260641956,-150.0,0.00017351,2]
[401484950,1768260641965,-150.0,0.00017352,2]
[401484952,1768260641975,-150.0,0.00017357,2]
[401484954,1768260641984,-162.0,0.0001736,2]
[401484956,1768260641993,-162.0,0.0001736,2]
[401484958,1768260642002,-162.0,0.0001736,2]
[401484960,1768260642011,-162.0,0.0001736,2]
[401484962,1768260642020,-162.0,0.0001736,2]
[401484964,1768260642029,-834.0,0.0001736,2]
[401484966,1768260642039,-162.0,0.0001736,2]
[401484968,1768260642047,-834.0,0.0001736,2]
[401484970,1768260642056,-150.0,0.00017367,2]
[401484972,1768260642066,-150.0,0.00017374,2]
[401484974,1768260642075,-150.0,0.00017374,2]
[401484976,1768260642084,-273.0,0.00017375,2]
[401484978,1768260642094,-150.0,0.00017376,2]
[401484979,1768260642103,-150.0,0.00017377,2]
[401484981,1768260642113,-150.0,0.00017377,2]
[401484983,1768260642122,-150.0,0.0001738,2]
[401484997,1768260642234,-150.0,0.00017383,2]
[401484999,1768260642244,-231.91178999,0.00017385,2]
[401485001,1768260642253,-150.0,0.000174,2]
[401485003,1768260642263,-150.0,0.000174,2]
[401485005,1768260642273,-150.0,0.000174,2]
[401485007,1768260642282,-150.0,0.000174,2]
[401485009,1768260642292,-150.0,0.000174,2]
[401485011,1768260642302,-150.0,0.000174,2]
[401485013,1768260642311,-3490.5,0.00017408,2]
[401485015,1768260642321,-150.0,0.00017409,2]
[401485017,1768260642330,-150.0,0.0001741,2]
[401485018,1768260642340,-273.0,0.00017411,2]
[401485020,1768260642350,-150.0,0.00017412,2]
[401485023,1768260642360,-150.0,0.00017412,2]
[401485025,1768260642369,-23309.28328766,0.00017422,2]
[401485027,1768260642378,-150.0,0.00017424,2]
[401485028,1768260642387,-150.0,0.00017426,2]
[401485031,1768260642397,-150.0,0.00017433,2]
[401485033,1768260642406,-150.0,0.00017434,2]
[401485034,1768260642420,-150.0,0.00017439,2]
[401485037,1768260642430,-150.0,0.00017446,2]
[401485039,1768260642440,-150.0,0.00017446,2]
[401485042,1768260642449,-150.0,0.00017448,2]
[401485044,1768260642459,-150.0,0.00017452,2]
[401485046,1768260642468,-150.0,0.00017452,2]
[401485048,1768260642478,-250.0,0.00017457,2]
[401485050,1768260642487,-150.0,0.0001746,2]
[401485052,1768260642496,-273.0,0.00017461,2]
[401485054,1768260642506,-150.0,0.00017467,2]
[401485056,1768260642515,-150.0,0.00017469,2]
[401485058,1768260642524,-150.0,0.00017472,2]
[401485060,1768260642534,-150.0,0.00017478,2]
[401485062,1768260642543,-150.0,0.00017481,2]
[401485064,1768260642552,-150.0,0.00017481,2]
[401485067,1768260642562,-3490.5,0.00017482,2]
[401485070,1768260642571,-150.0,0.00017486,2]
[401485072,1768260642580,-150.0,0.00017496,2]
[401485074,1768260642590,-150.0,0.00017498,2]
[401485076,1768260642598,-150.0,0.000175,2]
[401485078,1768260642607,-150.0,0.000175,2]
[401485080,1768260642617,-1601.85016191,0.000175,2]
[401485082,1768260642626,-150.0,0.00017504,2]
[401485084,1768260642635,-500.0,0.00017511,2]
[401485086,1768260642644,-150.0,0.00017511,2]
[401485088,1768260642654,-150.0,0.00017515,2]
[401485090,1768260642664,-150.0,0.00017515,2]
[401485092,1768260642674,-150.0,0.0001752,2]
[401485094,1768260642687,-273.0,0.00017522,2]
[401485096,1768260642696,-168.0,0.00017524,2]
[401485097,1768260642705,-150.0,0.00017528,2]
[401485098,1768260642715,-150.0,0.0001753,2]
[401485099,1768260642726,-150.0,0.0001753,2]
[401485100,1768260642735,-150.0,0.00017533,2]
[401485101,1768260642744,-1042.88649814,0.00017534,2]
[401485102,1768260642754,-150.0,0.00017537,2]
[401485103,1768260642763,-150.0,0.00017544,2]
[401485104,1768260642772,-158.80989465,0.00017549,2]
[401485106,1768260642782,-150.0,0.0001755,2]
[401485108,1768260642791,-150.0,0.0001755,2]
[401485110,1768260642800,-150.0,0.0001755,2]
[401485112,1768260642809,-788.02746761,0.00017552,2]
[401485114,1768260642819,-3490.5,0.00017556,2]
[401485116,1768260642828,-150.0,0.00017557,2]
[401485118,1768260642838,-150.0,0.00017557,2]
[401485120,1768260642847,-150.0,0.00017563,2]
[401485122,1768260642856,-150.0,0.00017567,2]
[401485124,1768260642865,-150.0,0.00017568,2]
[401485126,1768260642874,-1000.0,0.00017578,2]
[401485128,1768260642883,-150.0,0.00017583,2]
[401485130,1768260642893,-150.0,0.00017585,2]
[401485132,1768260642902,-150.0,0.00017585,2]
[401485134,1768260642912,-150.0,0.00017587,2]
[401485136,1768260642921,-150.0,0.00017589,2]
[401485138,1768260642931,-150.0,0.00017592,2]
[401485140,1768260642940,-150.0,0.000176,2]
[401485142,1768260642950,-150.0,0.000176,2]
[401485144,1768260642959,-150.0,0.000176,2]
[401485146,1768260642968,-150.0,0.000176,2]
[401485148,1768260642977,-1000.0,0.00017604,2]
[401485150,1768260642986,-150.0,0.00017609,2]
[401485153,1768260642996,-150.0,0.00017609,2]
[401485155,1768260643005,-150.0,0.00017614,2]
[401485157,1768260643014,-150.0,0.00017616,2]
[401485159,1768260643024,-150.0,0.00017616,2]
[401485161,1768260643033,-150.0,0.00017619,2]
[401485163,1768260643042,-150.0,0.00017619,2]
[401485165,1768260643052,-500.0,0.0001762,2]
[401485167,1768260643060,-500.0,0.00017621,2]
[401485169,1768260643070,-540.4577012,0.00017621,2]
[401485171,1768260643079,-500.0,0.00017621,2]
[401485173,1768260643088,-1000.0,0.00017621,2]
[401485175,1768260643098,-1000.0,0.00017621,2]
[401485177,1768260643107,-1000.0,0.00017621,2]
[401485179,1768260643117,-500.0,0.00017621,2]
[401485181,1768260643127,-1000.0,0.00017621,2]
[401485183,1768260643136,-1000.0,0.00017621,2]
[401485185,1768260643146,-1031.96318574,0.00017621,2]
[401485187,1768260643155,-966.00820468,0.00017621,2]
[401485189,1768260643165,-1000.0,0.00017621,2]
[401485191,1768260643175,-503.84192068,0.00017621,2]